Body Name,Body,Service Level,Expense Type,Expense Code,Narrative,Date,Transaction Number,Amount,Capital and Revenue,Supplier Name,Supplier ID
South Ribble Borough Council,http://statistics.data.gov.uk/id/local-authority/30UE,Central Support Services,Reactive Repair & Maintenance,2020,"Hurst Grange Coach House, * Window clean internal and external, * Canopy clean internal and external, * Gutter clean, , Order as ",18/10/2023,0000492933,650.00,Revenue,A 2 Clean Ltd,0
South Ribble Borough Council,http://statistics.data.gov.uk/id/local-authority/30UE,Street Cleansing,Agency Staff,1121,"NAME REDACTED W/E 22.09.23 -38.25 hrs, @ 15.30ph",11/10/2023,0000492695,585.23,Revenue,ACE PERSONNEL,0
South Ribble Borough Council,http://statistics.data.gov.uk/id/local-authority/30UE,Street Cleansing,Agency Staff,1121,"NAME REDACTED W/E 29.09.23 -36.25 hrs, @ 15.30ph",11/10/2023,0000492902,554.63,Revenue,ACE PERSONNEL,0
South Ribble Borough Council,http://statistics.data.gov.uk/id/local-authority/30UE,Central Support Services,Reactive Repair & Maintenance,2020,"Replace toilet syphon in gents banqueting suite, 120, Civic, Replace radiator in gents toilet 2nd floor east, 440, Civic",11/10/2023,0000492921,560.00,Revenue,Ainscoe Plumbing & Heating Ltd,0
South Ribble Borough Council,http://statistics.data.gov.uk/id/local-authority/30UE,Central Support Services,Reactive Repair & Maintenance,2020,"Supply and fit new zip hydroboil, due to the old unit leaking becoming beyond repair. AS per NAME REDACTED request at Moss side Depot, mo",18/10/2023,0000493188,"1,050.00",Revenue,Ainscoe Plumbing & Heating Ltd,0
South Ribble Borough Council,http://statistics.data.gov.uk/id/local-authority/30UE,Local Tax Collection,Bank Charges,4811,post office,18/10/2023,0000492820,600.59,Revenue,ALLPAY LTD,0
South Ribble Borough Council,http://statistics.data.gov.uk/id/local-authority/30UE,Central Support Services,External Contractors Charges,4570,Network ports and patching across multiple sites and cabinet installation,18/10/2023,0000491202,580.00,Revenue,AMPEC Limited,0
South Ribble Borough Council,http://statistics.data.gov.uk/id/local-authority/30UE,Central Support Services,External Contractors Charges,4570,Network ports and patching across multiple sites and cabinet installation,18/10/2023,0000491203,"1,030.00",Revenue,AMPEC Limited,0
South Ribble Borough Council,http://statistics.data.gov.uk/id/local-authority/30UE,Central Support Services,External Contractors Charges,4570,Network ports and patching across multiple sites and cabinet installation,18/10/2023,0000491631,680.00,Revenue,AMPEC Limited,0
South Ribble Borough Council,http://statistics.data.gov.uk/id/local-authority/30UE,Central Support Services,Network and Security,4247,"Installation of 10x Excel Cat5e network points in the glass office., Testing labelling and certification",18/10/2023,0000492433,720.00,Revenue,AMPEC Limited,0
South Ribble Borough Council,http://statistics.data.gov.uk/id/local-authority/30UE,Capital,Capital Grant,C570,DFG WORK FOR ADAPTATION FOR LEVEL ACCESS BATHROOM AT ADDRESS REDACTED AS PER SRBC PLANS AND QUOTE SUPPLIED OF 64,25/10/2023,0000493399,"6,458.40",Revenue,APG DOMESTIC SERVICES,0
South Ribble Borough Council,http://statistics.data.gov.uk/id/local-authority/30UE,Economic Development,Partnership,485I,"12 month Local Government Band 2 membership for 2023, Cost 725 + VAT.",18/10/2023,0000492037,755.00,Revenue,Association of Town Centre Management,0
South Ribble Borough Council,http://statistics.data.gov.uk/id/local-authority/30UE,Central Support Services,Materials General,4040,"Track, VIN REDACTED, JFC 20623",11/10/2023,0000492751,530.00,Revenue,BALMERS GM LTD,0
South Ribble Borough Council,http://statistics.data.gov.uk/id/local-authority/30UE,Capital,Capital Grant,C570,"DFG funding to provide a bedroom adaptation, driveway and dropped curb at ADDRESS REDACTED as per quote supplied of 208",04/10/2023,0000492671,"22,274.41",Revenue,Bambers Remedial Contractors Ltd,0
South Ribble Borough Council,http://statistics.data.gov.uk/id/local-authority/30UE,Central Support Services,Materials General,4040,"Tail gate, Ram handle, VIN REDACTED, JFC 20775",25/10/2023,0000493314,550.00,Revenue,BARLOW TRAILERS LTD,0
South Ribble Borough Council,http://statistics.data.gov.uk/id/local-authority/30UE,Central Support Services,Reactive Repair & Maintenance,2020,"Additional emergency lighting works - additional lighting points - side stores, old bar areas, in cross room, shield room, instal",25/10/2023,0000493320,681.60,Revenue,BELEC ELECTRICAL LTD,0
South Ribble Borough Council,http://statistics.data.gov.uk/id/local-authority/30UE,Surplus or Deficit on Trading,Planned Annual Repair & Maintenance,2021,This order is to cover the remedials following the fixed wire testing on the sites sent on the spreadsheet. Order number PUR00568,25/10/2023,0000493344,634.52,Revenue,BELEC ELECTRICAL LTD,0
South Ribble Borough Council,http://statistics.data.gov.uk/id/local-authority/30UE,Surplus or Deficit on Trading,Planned Annual Repair & Maintenance,2021,"Electronic Security & Life Safety Systems Annual Remote as per NAME REDACTED request at Worden Hall , Life Safety & Security Discipline Re",25/10/2023,0000493301,"2,075.00",Revenue,Black Box Security Alarm Systems Ltd,0
South Ribble Borough Council,http://statistics.data.gov.uk/id/local-authority/30UE,Waste Collection,Hiring Expenses,3212,Hire of DAf LF45 160 20ft Tail lift Truck 7.5T @ 300.00 per week 11th September to 6th October 2023,25/10/2023,0000492920,600.00,Revenue,Blackburn Van Hire & Sales Limited,0
South Ribble Borough Council,http://statistics.data.gov.uk/id/local-authority/30UE,Central Support Services,Lancashire Payroll Service,4531,Payroll ad hoc charges 2023/24,18/10/2023,0000493200,"1,404.90",Revenue,Blackpool Council,0
South Ribble Borough Council,http://statistics.data.gov.uk/id/local-authority/30UE,Central Support Services,Lancashire Payroll Service,4531,Payroll ad hoc charges 2023/24,18/10/2023,0000493204,"8,490.80",Revenue,Blackpool Council,0
South Ribble Borough Council,http://statistics.data.gov.uk/id/local-authority/30UE,Short Term Creditors,Amount Paid,0030,Blues and Twos - Sep 23 Deductions from Payroll,11/10/2023,0000493015,"6,009.00",Revenue,Blues and Twos Credit Union,0
South Ribble Borough Council,http://statistics.data.gov.uk/id/local-authority/30UE,Capital,Cap Contract Payment,C230,"Leyland Town Deal - Demolition and Asbestos Removal at the Former Engineering Works Site at Quin Street, Leyland",18/10/2023,0000493135,"8,532.70",Revenue,Bradley Demolition Limited,0
South Ribble Borough Council,http://statistics.data.gov.uk/id/local-authority/30UE,Community Development,External Catering Charges,4575,"Packed lunches for Summer 2023 HAF @ 4.60 per person, , Week 1: x660 = 3,036; , Week 2 Monday: x145 = 667, , Total = 3,703 ex",18/10/2023,0000492303,"3,703.00",Revenue,BROTHERS OF CHARITY SERVICES,0
South Ribble Borough Council,http://statistics.data.gov.uk/id/local-authority/30UE,Community Development,External Catering Charges,4575,"Packed lunches for Summer 2023 HAF @ 4.60 per person, , Week 2: x435 = 2,001; , Week 3: x580 = 2,672; , Week 4: x540 = 2,484;",18/10/2023,0000492750,"9,024.04",Revenue,BROTHERS OF CHARITY SERVICES,0
South Ribble Borough Council,http://statistics.data.gov.uk/id/local-authority/30UE,Surplus or Deficit on Trading,Reactive Repair & Maintenance,2020,"Supply and fit - 50lm Harris Fencing around the perimeter of Worden Bungalow, prior to demolishment as per NAME REDACTED request",11/10/2023,0000492840,"1,260.45",Revenue,BRYAN LEE BUILDING CONTRACTORS LTD,0
South Ribble Borough Council,http://statistics.data.gov.uk/id/local-authority/30UE,Recreation & Sport,Reactive Repair & Maintenance,2020,"Roof re-cover., 1) Install fixed scaffolding tower and primeter edge proctection to provide safe working area , 2) Existing flat ",18/10/2023,0000492858,"12,673.12",Revenue,BRYAN LEE BUILDING CONTRACTORS LTD,0
South Ribble Borough Council,http://statistics.data.gov.uk/id/local-authority/30UE,Central Support Services,Agency Staff,1121,Contractors for benefit work w/e 10 Jul 23 to 28 Aug 23,18/10/2023,0000491756,"2,652.00",Revenue,Business Smart Solutions Ltd,0
South Ribble Borough Council,http://statistics.data.gov.uk/id/local-authority/30UE,Central Support Services,Agency Staff,1121,BENEFITS PROCESSING 18.09.23 TO 08.10.23,18/10/2023,0000493187,"1,059.50",Revenue,Business Smart Solutions Ltd,0
South Ribble Borough Council,http://statistics.data.gov.uk/id/local-authority/30UE,Central Support Services,Agency Staff,1121,Revenues processing work,18/10/2023,0000493218,"1,599.00",Revenue,Business Smart Solutions Ltd,0
South Ribble Borough Council,http://statistics.data.gov.uk/id/local-authority/30UE,Economic Development,Operational Equip & Tools,4010,"6 x 9m marquee, concrete ballast, 40 trestle tables, 180 folding chairs, delivery and collection for Taste of Leyland event",11/10/2023,0000492270,"2,060.00",Revenue,C K Marquees,0
South Ribble Borough Council,http://statistics.data.gov.uk/id/local-authority/30UE,Capital,Cap Contract Payment,C230,"Main Contract - Jubilee Gardens Extra Care, West Paddock, Leyland, Construction Contract for Extra Care Facility, Instruction as ",04/10/2023,0000492668,"582,487.26",Revenue,Caddick Construction (NW) Ltd,0
South Ribble Borough Council,http://statistics.data.gov.uk/id/local-authority/30UE,Central Support Services,Agency Staff,1121,Planning consultant NAME REDACTED Cuerdale Garden Village application,04/10/2023,0000491752,960.00,Revenue,CAPITA PROPERTY AND INFRASTRUCTURE LTD,0
South Ribble Borough Council,http://statistics.data.gov.uk/id/local-authority/30UE,Central Support Services,Agency Staff,1121,Planning consultant NAME REDACTED Cuerdale Garden Village application,04/10/2023,0000492511,"1,200.00",Revenue,CAPITA PROPERTY AND INFRASTRUCTURE LTD,0
South Ribble Borough Council,http://statistics.data.gov.uk/id/local-authority/30UE,Central Support Services,Agency Staff,1121,Planning Consultant NAME REDACTED in respect of the Logik planning application,04/10/2023,0000492514,990.00,Revenue,CAPITA PROPERTY AND INFRASTRUCTURE LTD,0
South Ribble Borough Council,http://statistics.data.gov.uk/id/local-authority/30UE,Central Support Services,Consultancy Fees,4541,"ICT Cap2 South Ribble migration, integration and set up fee (inv C4001253)",04/10/2023,0000482683,"7,955.00",Revenue,CHORLEY BOROUGH COUNCIL,0
South Ribble Borough Council,http://statistics.data.gov.uk/id/local-authority/30UE,Corporate Management,Corporate Training,1405,SRBC Share of the �It�s all about us� event.,18/10/2023,0000492115,"3,615.25",Revenue,CHORLEY BOROUGH COUNCIL,0
South Ribble Borough Council,http://statistics.data.gov.uk/id/local-authority/30UE,Economic Development,Professional Fees,4510,Delivery and collection of fencing for Music in the park,04/10/2023,0000492647,"1,637.77",Revenue,CHORLEY BOROUGH COUNCIL,0
South Ribble Borough Council,http://statistics.data.gov.uk/id/local-authority/30UE,Recycling,Merchant Charges,4816,Garden Waste Subscriptions to South Ribble Borough Council 2022/23,18/10/2023,0000492847,"6,778.45",Revenue,CHORLEY BOROUGH COUNCIL,0
South Ribble Borough Council,http://statistics.data.gov.uk/id/local-authority/30UE,Homelessness,Temporary Accommodation,5311,"Cotswold House Rough Sleeper Provision charges for July 2023, , Chorley Borough Council to invoice South Ribble Borough Council ,",18/10/2023,0000493101,"1,224.00",Revenue,CHORLEY BOROUGH COUNCIL,0
South Ribble Borough Council,http://statistics.data.gov.uk/id/local-authority/30UE,Capital,Cap Contract Payment,C230,"4.5 Cubic meters of ST3 concrete inc Wheelbarrow service @ 140 per cubic meter, for Worden Park walled garden pot house, Friday ",18/10/2023,0000493096,686.00,Revenue,Chorley Concrete Ltd,0
South Ribble Borough Council,http://statistics.data.gov.uk/id/local-authority/30UE,Central Support Services,Network and Security,4247,"Whitelisting services, IP address changes",04/10/2023,0000492272,"1,553.50",Revenue,CIVICA UK LTD,0
South Ribble Borough Council,http://statistics.data.gov.uk/id/local-authority/30UE,Capital,Cap Professional Fees,C210,"New Football winch for AGP Pitch 2 at Bamber Bridge Football Hub, Order from NAME REDACTED",04/10/2023,0000492438,592.25,Revenue,Cleveland Land Services (Guisborough) Limited,0
South Ribble Borough Council,http://statistics.data.gov.uk/id/local-authority/30UE,Community Development,Professional Fees,4510,"CNOS Summer HAF Camps with food @ 14 per place, , Week 1 x160 = 2,240; , Week 2 x160 = 2,240; , Week 3 x160 = 2,240;, Week 4 ",11/10/2023,0000492748,"8,960.00",Revenue,Community Network and Outreach,0
South Ribble Borough Council,http://statistics.data.gov.uk/id/local-authority/30UE,Central Support Services,Purchase of Bins,4043,50 x 16.30 Grey 140 wheelie bins with SR logo,04/10/2023,0000492719,815.00,Revenue,Contenur UK Ltd,0
South Ribble Borough Council,http://statistics.data.gov.uk/id/local-authority/30UE,Recreation & Sport,Gas,2304,jan- feb 23,18/10/2023,0000492935,"1,045.90",Revenue,Corona Energy Retail 4 Limited,0
South Ribble Borough Council,http://statistics.data.gov.uk/id/local-authority/30UE,Recreation & Sport,Gas,2304,sept - oct 22,18/10/2023,0000492938,613.49,Revenue,Corona Energy Retail 4 Limited,0
South Ribble Borough Council,http://statistics.data.gov.uk/id/local-authority/30UE,Recreation & Sport,Gas,2304,oct - nov 22,18/10/2023,0000492939,615.03,Revenue,Corona Energy Retail 4 Limited,0
South Ribble Borough Council,http://statistics.data.gov.uk/id/local-authority/30UE,Recreation & Sport,Gas,2304,nov- dec22,18/10/2023,0000492940,831.01,Revenue,Corona Energy Retail 4 Limited,0
South Ribble Borough Council,http://statistics.data.gov.uk/id/local-authority/30UE,Recreation & Sport,Gas,2304,dec-22 to jan23,18/10/2023,0000492941,976.65,Revenue,Corona Energy Retail 4 Limited,0
South Ribble Borough Council,http://statistics.data.gov.uk/id/local-authority/30UE,Recreation & Sport,Gas,2304,mar to sept 23,18/10/2023,0000492944,705.90,Revenue,Corona Energy Retail 4 Limited,0
South Ribble Borough Council,http://statistics.data.gov.uk/id/local-authority/30UE,Central Support Services,Purchase of Bins,4043,BROWN WHEELIE BINS 360 X 21.30,25/10/2023,0000493362,"7,668.00",Revenue,CRAEMER UK LTD,0
South Ribble Borough Council,http://statistics.data.gov.uk/id/local-authority/30UE,Capital,Capital Grant,C570,DFG WORK FOR ADAPTATION FOR LEVEL ACCESS SHOWER AND RAMP AT ADDRESS REDACTED PER SRBC PLANS AND QUOTE SUPPLIE,25/10/2023,0000493400,"6,487.21",Revenue,Croston Plumbing & Heating Ltd,0
South Ribble Borough Council,http://statistics.data.gov.uk/id/local-authority/30UE,Recreation & Sport,Publicity & Promotion,4842,"Cuerden Church School HAF Clubs � Summer 2023, , 50 per day for 16 days, , 24/7 to 27/7. 31/7 to 3/8. 7/8 to 10/8. 14/8 to 17/8.",04/10/2023,0000492747,800.00,Revenue,Cuerden Church School,0
South Ribble Borough Council,http://statistics.data.gov.uk/id/local-authority/30UE,Capital,Cap Professional Fees,C210,Leyland Town Deal - Traffic and Transport Engineering Services Professional Fees - Procurement 4: Construction of BASE2 & Commerc,18/10/2023,0000493099,618.00,Revenue,Curtins Consulting Ltd,0
South Ribble Borough Council,http://statistics.data.gov.uk/id/local-authority/30UE,Capital,Cap Professional Fees,C210,Leyland Town Deal - Highways Consultancy Fees Quin St RIBA 4,18/10/2023,0000493100,793.00,Revenue,Curtins Consulting Ltd,0
South Ribble Borough Council,http://statistics.data.gov.uk/id/local-authority/30UE,Capital,Cap Contract Payment,C230,Supply and delivery of 3no A2 signs,11/10/2023,0000492838,"2,501.20",Revenue,DAB Graphics Ltd,0
South Ribble Borough Council,http://statistics.data.gov.uk/id/local-authority/30UE,Recreation & Sport,Telephones-Rental,4261,,11/10/2023,0000492914,533.68,Revenue,Daisy Communications LTD,0
South Ribble Borough Council,http://statistics.data.gov.uk/id/local-authority/30UE,Central Support Services,Agency Staff,1121,South Ribble Customer Services Housing Temp,25/10/2023,0000493310,525.60,Revenue,Daniel Adams Recruitment Ltd,0
South Ribble Borough Council,http://statistics.data.gov.uk/id/local-authority/30UE,Democratic Represent and  Mgnt,Members Training,1406,"TV for Media Training with Cabinet, 15 September 2023, NAME REDACTED",25/10/2023,0000492667,"2,125.00",Revenue,Data TV Ltd,0
South Ribble Borough Council,http://statistics.data.gov.uk/id/local-authority/30UE,Central Support Services,External Contractors Charges,4570,"Spec Repair, VIN REDACTED, JFC 20714",04/10/2023,0000492553,"5,953.98",Revenue,DAVAND LTD (trading as Longton Coachcraft),0
South Ribble Borough Council,http://statistics.data.gov.uk/id/local-authority/30UE,Central Support Services,Planned Annual Repair & Maintenance,2021,Scope of Works Quotation following a site survey to install use spur and fire alarm interface in the below locations. Ground Floo,11/10/2023,0000492817,"1,233.00",Revenue,DES Electrical Services Ltd,0
South Ribble Borough Council,http://statistics.data.gov.uk/id/local-authority/30UE,Central Support Services,Furniture,4017,"17 AS12 - Aspen Rectangular Desk , 1200 x 800 x 730mm, Silver Frame / White MCF",25/10/2023,0000493282,"1,824.27",Revenue,Diamond Business Interiors Ltd,0
South Ribble Borough Council,http://statistics.data.gov.uk/id/local-authority/30UE,Central Support Services,Consultancy Fees,4541,"PSN IT Health Check (External & Internal) Combined Chorley Council & South Ribble Council with separate Reports, 50:50",04/10/2023,0000491765,"10,200.00",Revenue,DIONACH LTD,0
South Ribble Borough Council,http://statistics.data.gov.uk/id/local-authority/30UE,Central Support Services,Software Licensing,4243,"Charity log, core CRM 1135.00, Year 1 annual support 725.00, Remote implementation day 1425.00, Remote review day 475.00",18/10/2023,0000493110,"3,760.00",Revenue,Dizions,0
South Ribble Borough Council,http://statistics.data.gov.uk/id/local-authority/30UE,Culture & Heritage,Professional Fees,4510,2x days consultancy work to inform the viability of a bar at Worden Hall,25/10/2023,0000492702,500.00,Revenue,Dwayne Kettlewell,0
South Ribble Borough Council,http://statistics.data.gov.uk/id/local-authority/30UE,Economic Development,Professional Fees,4510,elec disconnection @ worden bungalow,18/10/2023,0000492780,"1,739.98",Revenue,ELECTRICITY NORTH WEST LTD,0
South Ribble Borough Council,http://statistics.data.gov.uk/id/local-authority/30UE,Surplus or Deficit on Trading,Energy Performance Certificates,2308,"for NAME REDACTED (ENER Services) as per NAME REDACTED request , , Description:, CEPC assessment for Vernon Carus Club buildings, Co",18/10/2023,0000493180,675.00,Revenue,Ener Services & Surveys Ltd,0
South Ribble Borough Council,http://statistics.data.gov.uk/id/local-authority/30UE,Homelessness,Contributions to Other Bodies,4730,"Purchase order for Excel Housing Solutions  8,750.00 � to cover 1st November 2023 to 31 January 2024., , We owe 8,750.00 for N",25/10/2023,0000493293,"8,750.00",Revenue,Excel Housing Solutions,0
South Ribble Borough Council,http://statistics.data.gov.uk/id/local-authority/30UE,Homelessness,Contributions to Other Bodies,4730,"Purchase order for Excel Housing Solutions  5,833.34 � to cover 1st February 2024 to 31st March 2024., , The council has a cont",25/10/2023,0000493294,"5,833.34",Revenue,Excel Housing Solutions,0
South Ribble Borough Council,http://statistics.data.gov.uk/id/local-authority/30UE,Central Support Services,Materials General,4040,FOOTBALL PITCH LINE MARKER PAINT 10LTRS-PITCHMARKER Q2,04/10/2023,0000492522,511.68,Revenue,Fleet Line Markers Limited,0
South Ribble Borough Council,http://statistics.data.gov.uk/id/local-authority/30UE,Parking Services,Maintenance & Repair,4013,Repairs to ecroyd street machine,11/10/2023,0000492856,646.00,Revenue,Flowbird Smart City UK Ltd,0
South Ribble Borough Council,http://statistics.data.gov.uk/id/local-authority/30UE,Planning Policy,Professional Fees,4510,"Counsel`s fees for advising in Consultation & Advice for Central Lancashire Local Plan, Invoice no: 516798",11/10/2023,0000492827,"3,500.00",Revenue,Giles Cannock,0
South Ribble Borough Council,http://statistics.data.gov.uk/id/local-authority/30UE,Central Support Services,Reactive Repair & Maintenance,2020,"Civic Centre PV Solar system , check integrity + fixing of solar panels + cabling, solar array test check voltage, ensure inverte",04/10/2023,0000492662,964.50,Revenue,GOS Heating Ltd,0
South Ribble Borough Council,http://statistics.data.gov.uk/id/local-authority/30UE,Central Support Services,Consultancy Fees,4541,"GOSS Content , GOSS Forms , GOSS Theme Support - Cruise, Chilli and Impact themes",04/10/2023,0000492492,"30,600.00",Revenue,Goss Interactive Limited,0
South Ribble Borough Council,http://statistics.data.gov.uk/id/local-authority/30UE,Central Support Services,Consultancy Fees,4541,"GOSS Content , GOSS Forms , GOSS Theme Support - Cruise, Chilli and Impact themes",25/10/2023,0000492493,"3,000.00",Revenue,Goss Interactive Limited,0
South Ribble Borough Council,http://statistics.data.gov.uk/id/local-authority/30UE,Central Support Services,Consultancy Fees,4541,"GOSS Content , GOSS Forms , GOSS Theme Support - Cruise, Chilli and Impact themes",25/10/2023,0000492494,"1,740.00",Revenue,Goss Interactive Limited,0
South Ribble Borough Council,http://statistics.data.gov.uk/id/local-authority/30UE,Central Support Services,Consultancy Fees,4541,"GOSS Content , GOSS Forms , GOSS Theme Support - Cruise, Chilli and Impact themes",25/10/2023,0000492523,"1,740.00",Revenue,Goss Interactive Limited,0
South Ribble Borough Council,http://statistics.data.gov.uk/id/local-authority/30UE,Central Support Services,Consultancy Fees,4541,"GOSS Content , GOSS Forms , GOSS Theme Support - Cruise, Chilli and Impact themes",25/10/2023,0000492524,"1,740.00",Revenue,Goss Interactive Limited,0
South Ribble Borough Council,http://statistics.data.gov.uk/id/local-authority/30UE,Recreation & Sport,Reactive Repair & Maintenance,2020,"South ribble tennis and fitness centre, PR5 6 BJ, , Undertake intrusive structural survey. The nature of the survey is to look fo",11/10/2023,0000492743,525.00,Revenue,GRAHAM SCHOFIELD ASSOCIATES,0
South Ribble Borough Council,http://statistics.data.gov.uk/id/local-authority/30UE,Recreation & Sport,Reactive Repair & Maintenance,2020,"Bamber Bridge, bamber bridge leisure centre, Brindle Road, Bamber Bridge PR5 6YJ, , Undertake intrusive structural survey. The na",11/10/2023,0000492744,525.00,Revenue,GRAHAM SCHOFIELD ASSOCIATES,0
South Ribble Borough Council,http://statistics.data.gov.uk/id/local-authority/30UE,Corporate Management,External Audit Fees,4512,Subsidy Audit 2021/22,25/10/2023,0000492649,"27,005.00",Revenue,Grant Thornton UK LLP,0
South Ribble Borough Council,http://statistics.data.gov.uk/id/local-authority/30UE,Recreation & Sport,Materials General,4040,Inflatable Equipment Total = 885.07 ex VAT,18/10/2023,0000492892,885.07,Revenue,GSB Inflatable Inspections,0
South Ribble Borough Council,http://statistics.data.gov.uk/id/local-authority/30UE,Capital,Cap Contract Payment,C230,Worden Park water treatment packages,11/10/2023,0000492879,"16,833.75",Revenue,H Clarke and Sons Ltd,0
South Ribble Borough Council,http://statistics.data.gov.uk/id/local-authority/30UE,Community Development,External Catering Charges,4575,"Packed lunches for Summer 2023 HAF, , Week 1: Monday x85 = 425.00, Tuesday x85 = 425.00, Wednesday x125 = 625.00, Thursday x11",11/10/2023,0000492215,"3,100.00",Revenue,Halls Bakery Limited,0
South Ribble Borough Council,http://statistics.data.gov.uk/id/local-authority/30UE,Short Term Creditors,Amount Received,0140,,11/10/2023,0000492375,"3,016.65",Revenue,HM REVENUE & CUSTOMS,0
South Ribble Borough Council,http://statistics.data.gov.uk/id/local-authority/30UE,Short Term Creditors,Amount Paid,0030,HMRC Income Tax - Sep 23 Deductions from Payroll,11/10/2023,0000493023,"106,887.82",Revenue,HM REVENUE & CUSTOMS 065PV00107808,0
South Ribble Borough Council,http://statistics.data.gov.uk/id/local-authority/30UE,Unapportionable Central OHeads,Apprentice Levy,1111,HMRC App Levy - Sep 23 Deductions from Payroll,11/10/2023,0000493024,"7,323.00",Revenue,HM REVENUE & CUSTOMS 065PV00107808,0
South Ribble Borough Council,http://statistics.data.gov.uk/id/local-authority/30UE,Short Term Creditors,Amount Paid,0030,HMRC NI EE's - Sep 23 Deductions from Payroll,11/10/2023,0000493025,"63,300.17",Revenue,HM REVENUE & CUSTOMS 065PV00107808,0
South Ribble Borough Council,http://statistics.data.gov.uk/id/local-authority/30UE,Short Term Creditors,Amount Paid,0030,HMRC NI ER's - Sep 23 Deductions from Payroll,11/10/2023,0000493026,"89,346.12",Revenue,HM REVENUE & CUSTOMS 065PV00107808,0
South Ribble Borough Council,http://statistics.data.gov.uk/id/local-authority/30UE,Short Term Creditors,Amount Paid,0030,HMRC Student Loans - Sep 23 Deductions from Payroll,11/10/2023,0000493028,"3,825.00",Revenue,HM REVENUE & CUSTOMS 065PV00107808,0
South Ribble Borough Council,http://statistics.data.gov.uk/id/local-authority/30UE,Capital,Cap Contract Payment,C230,Leyland Town Deal - AQA,04/10/2023,0000491292,"3,250.00",Revenue,Hoare Lea LLP,0
South Ribble Borough Council,http://statistics.data.gov.uk/id/local-authority/30UE,Recreation & Sport,Publicity & Promotion,4842,"School Games Partnership., Delivery of Competitions across South Ribble., , Payment for teacher day release from Hutton Grammar S",04/10/2023,0000492714,"3,200.00",Revenue,HUTTON GRAMMAR SCHOOL,0
South Ribble Borough Council,http://statistics.data.gov.uk/id/local-authority/30UE,Central Support Services,Software Licensing,4243,Technical Consultancy to apply PA SSL Certificate,04/10/2023,0000492217,525.00,Revenue,IDOX PLC,0
South Ribble Borough Council,http://statistics.data.gov.uk/id/local-authority/30UE,Corporate Management,College Course,1403,NAME REDACTED Professional Licensing Practitioners Qualification,18/10/2023,0000492551,578.00,Revenue,INSTITUTE OF LICENSING EVENTS LTD,0
South Ribble Borough Council,http://statistics.data.gov.uk/id/local-authority/30UE,Corporate Management,College Course,1403,NAME REDACTED Professional Licensing Practitioners Qualification,18/10/2023,0000492551,578.00,Revenue,INSTITUTE OF LICENSING EVENTS LTD,0
South Ribble Borough Council,http://statistics.data.gov.uk/id/local-authority/30UE,Waste Collection,Hiring Expenses,3212,"Hire of Renault box van 3.5 t -VIN REDACTED, for 2 weeks as of Monday 31.07.23",18/10/2023,0000492658,549.84,Revenue,Intack Self Drive Ltd,0
South Ribble Borough Council,http://statistics.data.gov.uk/id/local-authority/30UE,Capital,Cap Contract Payment,C230,Bamber Bridge hob inn site regeneration - retention payment,18/10/2023,0000493164,"1,872.13",Revenue,John Wade Groundworks Ltd t/a Wade Group,0
South Ribble Borough Council,http://statistics.data.gov.uk/id/local-authority/30UE,Open Spaces,External Contractors Charges,4570,"Longton Bypass , Salmsbury , End of M65 / Lostock Lane, August 2023",11/10/2023,0000492689,"3,650.00",Revenue,Kays highways Limited,0
South Ribble Borough Council,http://statistics.data.gov.uk/id/local-authority/30UE,Surplus or Deficit on Trading,Electricity,2303,elec,04/10/2023,0000492302,698.79,Revenue,Kinex,0
South Ribble Borough Council,http://statistics.data.gov.uk/id/local-authority/30UE,Surplus or Deficit on Trading,Electricity,2303,elec,25/10/2023,0000493259,809.96,Revenue,Kinex,0
South Ribble Borough Council,http://statistics.data.gov.uk/id/local-authority/30UE,Recreation & Sport,Publicity & Promotion,4842,"Summer 2023 HAF Camps School Rental @ 50/day, , Mon 24 July to Thu 27 July 2023, Mon 7 Aug to Thu 10 Aug 2023, Mon 14 Aug to Thu",11/10/2023,0000492878,600.00,Revenue,Kingsfold Primary School,0
South Ribble Borough Council,http://statistics.data.gov.uk/id/local-authority/30UE,Capital,Cap Contract Payment,C230,"Design and build of a new playground at the Holme Playground, Bamber Bridge, PR5 9BD.",18/10/2023,0000484511,"5,625.00",Revenue,KOMPAN LTD,0
South Ribble Borough Council,http://statistics.data.gov.uk/id/local-authority/30UE,Waste Collection,Clinical Waste Disposal,5112,July 2023 - Incineration of clinical waste,18/10/2023,0000493157,586.42,Revenue,LANCASHIRE TEACHING FT,0
South Ribble Borough Council,http://statistics.data.gov.uk/id/local-authority/30UE,Waste Collection,Clinical Waste Disposal,5112,May 2023 - Incineration of clinical waste,18/10/2023,0000493159,611.66,Revenue,LANCASHIRE TEACHING FT,0
South Ribble Borough Council,http://statistics.data.gov.uk/id/local-authority/30UE,Waste Collection,Clinical Waste Disposal,5112,March 2023 - Incineration of clinical waste,18/10/2023,0000493176,529.49,Revenue,LANCASHIRE TEACHING FT,0
South Ribble Borough Council,http://statistics.data.gov.uk/id/local-authority/30UE,Community Development,Professional Fees,4510,"Child, Family & Wellbeing Summer HAF Camps @ 10 per place, , Walton le Dale Youth & Community Centre, Wed 26/07/23 Farm Animal S",11/10/2023,0000492737,"2,450.00",Revenue,LANCS COUNTY COUNCIL,0
South Ribble Borough Council,http://statistics.data.gov.uk/id/local-authority/30UE,Community Development,Professional Fees,4510,"Targeted Youth Support Service Summer HAF Camps with food @ 15 per place, , West Paddock Neighbourhood Centre: Archery, bush cra",11/10/2023,0000492756,"1,125.00",Revenue,LANCS COUNTY COUNCIL,0
South Ribble Borough Council,http://statistics.data.gov.uk/id/local-authority/30UE,Capital,Cap Contract Payment,C230,agree initial 50% fee per NAME REDACTED no invoice until project completed? per NAME REDACTED must be paid within 14days?,11/10/2023,0000492775,"1,750.00",Revenue,LANCS COUNTY COUNCIL,0
South Ribble Borough Council,http://statistics.data.gov.uk/id/local-authority/30UE,Central Support Services,Software Licensing,4243,GIS Services Contract - 01/04/23 to 31/03/24.,11/10/2023,0000492843,"12,032.00",Revenue,LANCS COUNTY COUNCIL,0
South Ribble Borough Council,http://statistics.data.gov.uk/id/local-authority/30UE,Local Land Charges,L C C General,4530,Land Charges - September 2023,25/10/2023,0000493263,740.00,Revenue,LANCS COUNTY COUNCIL,0
South Ribble Borough Council,http://statistics.data.gov.uk/id/local-authority/30UE,Central Support Services,Materials General,4040,"1 rear brake caliper, 1 rear brake chamber , VIN REDACTED, JFC20692",04/10/2023,0000492489,805.00,Revenue,LANCS DAF,0
South Ribble Borough Council,http://statistics.data.gov.uk/id/local-authority/30UE,Central Support Services,Materials General,4040,"BIN 541, 3 x brake pads",04/10/2023,0000492539,555.00,Revenue,LANCS DAF,0
South Ribble Borough Council,http://statistics.data.gov.uk/id/local-authority/30UE,Central Support Services,Materials General,4040,2x ant roll bar bushes 6x gear box cooler mounts 1x centre ring 1x holder 1x bolt 1x washer 1x nut VIN REDACTED JFC 20753,18/10/2023,0000493035,642.86,Revenue,LANCS DAF,0
South Ribble Borough Council,http://statistics.data.gov.uk/id/local-authority/30UE,Central Support Services,Materials General,4040,service pack VIN REDACTED JFC 20799,18/10/2023,0000493059,538.62,Revenue,LANCS DAF,0
South Ribble Borough Council,http://statistics.data.gov.uk/id/local-authority/30UE,Central Support Services,Materials General,4040,1 x suspension hanger VIN REDACTED JFC 20753,18/10/2023,0000493130,"1,066.98",Revenue,LANCS DAF,0
South Ribble Borough Council,http://statistics.data.gov.uk/id/local-authority/30UE,Central Support Services,Materials General,4040,"hanger bracket, centre ring, holder, bolt, washer, nut, bush, VIN REDACTED, JFC 20825",25/10/2023,0000493295,"1,859.90",Revenue,LANCS DAF,0
South Ribble Borough Council,http://statistics.data.gov.uk/id/local-authority/30UE,Recreation & Sport,Reactive Repair & Maintenance,2020,"Height Barrier Repair Works at Bamber Bridge Leisure Centre, Works order as per NAME REDACTED",25/10/2023,0000493285,830.00,Revenue,LANDSCAPE ENGINEERING LIMITED,0
South Ribble Borough Council,http://statistics.data.gov.uk/id/local-authority/30UE,Capital,Cap Professional Fees,C210,Leyland Town Deal - Architect (Landscape) Professional Fees - Procurement 3: Public Realm (RIBA 4),18/10/2023,0000492102,"2,000.00",Revenue,Lanpro Services Ltd,0
South Ribble Borough Council,http://statistics.data.gov.uk/id/local-authority/30UE,Capital,Cap Professional Fees,C210,Leyland Town Deal - Architect (Landscape) Professional Fees - Procurement 4: Construction of BASE2 & Commercial Building A (RIBA ,18/10/2023,0000492103,"1,000.00",Revenue,Lanpro Services Ltd,0
South Ribble Borough Council,http://statistics.data.gov.uk/id/local-authority/30UE,Capital,Cap Professional Fees,C210,Leyland Town Deal - Architect (Landscape) Professional Fees - Procurement 5: Conversion of Balfour Court & Refurbishment of Leyla,18/10/2023,0000492105,"1,700.00",Revenue,Lanpro Services Ltd,0
South Ribble Borough Council,http://statistics.data.gov.uk/id/local-authority/30UE,Capital,Cap Professional Fees,C210,Leyland Town Deal - Architect (Landscape) Professional Fees - Procurement 5: Conversion of Balfour Court & Refurbishment of Leyla,18/10/2023,0000493047,"1,700.00",Revenue,Lanpro Services Ltd,0
South Ribble Borough Council,http://statistics.data.gov.uk/id/local-authority/30UE,Capital,Cap Professional Fees,C210,Leyland Town Deal - Architect (Landscape) Professional Fees - Procurement 4: Construction of BASE2 & Commercial Building A (RIBA ,18/10/2023,0000493048,"1,000.00",Revenue,Lanpro Services Ltd,0
South Ribble Borough Council,http://statistics.data.gov.uk/id/local-authority/30UE,Central Support Services,Occupational Health,1408,Counselling for Staff August 2023 - Invoice SRC0823,18/10/2023,0000492408,540.00,Revenue,Livewell Counselling Service,0
South Ribble Borough Council,http://statistics.data.gov.uk/id/local-authority/30UE,Economic Development,Professional Fees,4510,Providing children`s activities at the Taste of Leyland Event (4 hours provision),11/10/2023,0000492897,610.00,Revenue,Magical Story Jars,0
South Ribble Borough Council,http://statistics.data.gov.uk/id/local-authority/30UE,Capital,Capital Grant,C570,DFG WORKS FOR BATHROOM ADAPTATION AT ADDRESS REDACTED NEW PROGRESS PROPERTY SO 50% OF TOTAL QUOTE TO BE PAI,18/10/2023,0000493128,"4,141.99",Revenue,MAHONEY CONTRACTORS LTD,0
South Ribble Borough Council,http://statistics.data.gov.uk/id/local-authority/30UE,Surplus or Deficit on Trading,Planned Annual Repair & Maintenance,2021,"visual structural inspection of Greens dance studio, Moss Ln, Lostock hall, pr5 5bp and in particular to report on possible histo",18/10/2023,0000492925,550.00,Revenue,Marston & Grundy LLP,0
South Ribble Borough Council,http://statistics.data.gov.uk/id/local-authority/30UE,Open Spaces,GM Refurbishment,4657,"X2 loads of soil @ 260 per load , X1 Load Hardcore @ 170 per load",11/10/2023,0000492736,690.00,Revenue,Michael Alty,0
South Ribble Borough Council,http://statistics.data.gov.uk/id/local-authority/30UE,Suspended Items,Agency Staff,1121,Appointment of (NAME REDACTED) Procurement Officer for 6 months. 22.08.2023  21.0.2.2024,18/10/2023,0000493095,"3,800.00",Revenue,Michael Page International Recruitment Limited,0
South Ribble Borough Council,http://statistics.data.gov.uk/id/local-authority/30UE,Tourism,Reactive Repair & Maintenance,2020,"Attend Worden hall. Quote 1246., Replace defective guttering -seamless aluminium, re-fix several loose slates, repair-refit cast ",04/10/2023,0000492592,"1,100.00",Revenue,Mick Bamber,0
South Ribble Borough Council,http://statistics.data.gov.uk/id/local-authority/30UE,Surplus or Deficit on Trading,Reactive Repair & Maintenance,2020,"Remove old sheets, bent and twisted due to kids walking/jumping on the roof. Install new frame, Re-board with 3/4 sterling boards",18/10/2023,0000492792,"3,200.00",Revenue,Mick Bamber,0
South Ribble Borough Council,http://statistics.data.gov.uk/id/local-authority/30UE,Surplus or Deficit on Trading,Reactive Repair & Maintenance,2020,"Re-cover roof with Liquid plastic. Following roof leaks within William Hill betting shop. Dentist and book makers above, roof dou",18/10/2023,0000493083,"3,200.00",Revenue,Mick Bamber,0
South Ribble Borough Council,http://statistics.data.gov.uk/id/local-authority/30UE,Capital,Capital Grant,C570,DFG WORK FOR ADAPTATION FOR LEVEL ACCESS BATHROOM AND RAMP AT ADDRESS REDACTED AS PER SRBC PLANS AND QUOTE SUPPLIED,11/10/2023,0000492622,"8,587.00",Revenue,MSG Building and Construction Ltd,0
South Ribble Borough Council,http://statistics.data.gov.uk/id/local-authority/30UE,Central Support Services,Computer Equipment,4241,"Apple 11-inch iPad Pro Wi-Fi + Cellular - 4th generation - tablet - 512 GB - 11`` IPS (2388 x 1668)  1,250.00  5,000.00, - 3G, ",04/10/2023,0000492486,"5,040.00",Revenue,MYPREMIER LTD,0
South Ribble Borough Council,http://statistics.data.gov.uk/id/local-authority/30UE,Homelessness,Temporary Accommodation,5311,Purchase order for Purple Roomz hotel in Bamber Bridge for SRBC homelessness cases staying at the hotel during the month of Septe,11/10/2023,0000493057,"22,581.75",Revenue,National Hotel Rooms Ltd t/a Purple Roomz,0
South Ribble Borough Council,http://statistics.data.gov.uk/id/local-authority/30UE,Community Development,Temporary Accommodation,5311,Purchase order for Purple Roomz hotel in Bamber Bridge for SRBC homelessness cases staying at the hotel during the month of Septe,11/10/2023,0000493057,"4,350.94",Revenue,National Hotel Rooms Ltd t/a Purple Roomz,0
South Ribble Borough Council,http://statistics.data.gov.uk/id/local-authority/30UE,Development Control,Advertising,4841,Press notices for planning applications April 23 to March 24,04/10/2023,0000491800,892.80,Revenue,National World Publishing Limited,0
South Ribble Borough Council,http://statistics.data.gov.uk/id/local-authority/30UE,Development Control,Advertising,4841,Press notices for planning applications April 23 to March 24,04/10/2023,0000492591,803.52,Revenue,National World Publishing Limited,0
South Ribble Borough Council,http://statistics.data.gov.uk/id/local-authority/30UE,Development Control,Advertising,4841,Press notices for planning applications April 23 to March 24,04/10/2023,0000492673,803.52,Revenue,National World Publishing Limited,0
South Ribble Borough Council,http://statistics.data.gov.uk/id/local-authority/30UE,Development Control,Advertising,4841,Press notices for planning applications April 23 to March 24,25/10/2023,0000492895,685.08,Revenue,National World Publishing Limited,0
South Ribble Borough Council,http://statistics.data.gov.uk/id/local-authority/30UE,Development Control,Advertising,4841,Press notices for planning applications April 23 to March 24,25/10/2023,0000492896,622.80,Revenue,National World Publishing Limited,0
South Ribble Borough Council,http://statistics.data.gov.uk/id/local-authority/30UE,Development Control,Advertising,4841,Press notices for planning applications April 23 to March 24,25/10/2023,0000493056,622.80,Revenue,National World Publishing Limited,0
South Ribble Borough Council,http://statistics.data.gov.uk/id/local-authority/30UE,Central Support Services,External Contractors Charges,4570,"SRBC Estates/Property Services back scanning., 70 boxes, 150,000 images archive documents, 100,000 images live documents, collect",04/10/2023,0000492446,"6,526.88",Revenue,NEC Software Solutions UK Ltd,0
South Ribble Borough Council,http://statistics.data.gov.uk/id/local-authority/30UE,Central Support Services,Computer Equipment,4241,55inch tv for mayor with bracket,11/10/2023,0000492826,510.86,Revenue,Node4,0
South Ribble Borough Council,http://statistics.data.gov.uk/id/local-authority/30UE,Capital,Cap Professional Fees,C210,CGI Updates - Jubilee Gardens Extra Care Scheme - West Paddock (Leyland),04/10/2023,0000492606,"2,410.00",Revenue,NORR Consultants Limited,0
South Ribble Borough Council,http://statistics.data.gov.uk/id/local-authority/30UE,Central Support Services,Materials General,4040,"4 ROW CHANNEL BRUSH - C/W 4 NUTS/BOLTS-835/55, Plus 61.00 freight",11/10/2023,0000492659,"1,092.08",Revenue,NORTHERN MUNICIPAL SPARES LTD,0
South Ribble Borough Council,http://statistics.data.gov.uk/id/local-authority/30UE,Capital,Cap Contract Payment,C230,A0010287906 Credit received,25/10/2023,0000489659,"1,468.33",Revenue,NPOWER A0010287906 - BB Leisure Centre Pavillion,0
South Ribble Borough Council,http://statistics.data.gov.uk/id/local-authority/30UE,Parking Services,Parking Attendants,4514,"Variable Fee Car Park Enforcement , SEPTEMBER 2023 - Variable Recharge Items",25/10/2023,0000493126,"2,346.00",Revenue,NSL LTD,0
South Ribble Borough Council,http://statistics.data.gov.uk/id/local-authority/30UE,Parking Services,Parking Attendants,4514,"Variable Fee Car Park Enforcement AUGUST 2023 - Variable Recharge , Items",18/10/2023,0000493193,"2,244.80",Revenue,NSL LTD,0
South Ribble Borough Council,http://statistics.data.gov.uk/id/local-authority/30UE,Economic Development,Professional Fees,4510,"Hire and manage demo kitchen, Supply music stage , Collect 2 gen sets store and return, power distro and cables , trailer hire , ",11/10/2023,0000492860,"2,420.00",Revenue,Paul K Sound & Vision,0
South Ribble Borough Council,http://statistics.data.gov.uk/id/local-authority/30UE,Capital,Capital Grant,C570,"FG WORK FOR ADAPTATION FOR A BATHROOM ADAPTATION AT ADDRESS REDACTED AS PER SRBC PLANS AND QUOTE SUPPLIED OF 6450.00, TOTA",18/10/2023,0000493172,"6,450.00",Revenue,Paul Rothwell and Sons,0
South Ribble Borough Council,http://statistics.data.gov.uk/id/local-authority/30UE,Capital,Capital Grant,C570,"DFG WORK FOR ADAPTATION FOR A BATHROOM ADDAPTATION AT ADDRESS REDACTED AS PER SRBC PLANS AND QUOTE SUPPLIED OF 4430.00, T",25/10/2023,0000493401,"4,430.00",Revenue,Paul Rothwell and Sons,0
South Ribble Borough Council,http://statistics.data.gov.uk/id/local-authority/30UE,Central Support Services,Reactive Repair & Maintenance,2020,"8 Mar 2023 Expiry 7 Apr 2023 Quote Number QU-0804, Reference Liberal Democrats Room - Civic Centre as per NAME REDACTED request , Plasteri",11/10/2023,0000492869,"1,090.00",Revenue,PDP PROPERTY SERVICES LTD,0
South Ribble Borough Council,http://statistics.data.gov.uk/id/local-authority/30UE,Community Development,Professional Fees,4510,"Penwortham Boxing Club CIC : Summer HAF Camps including food @ 14 per place Week 2 x120 = 1,680; Week 3 x120 = 1,680; Week 4 x",18/10/2023,0000493199,"6,720.00",Revenue,Penwortham Boxing Club CIC,0
South Ribble Borough Council,http://statistics.data.gov.uk/id/local-authority/30UE,Capital,Consultancy,C259,Jubilee Gardens - RIBA 4 re design (JD/7779F005),25/10/2023,0000491621,"21,748.00",Revenue,Pettit Singleton Associates Ltd,0
South Ribble Borough Council,http://statistics.data.gov.uk/id/local-authority/30UE,Economic Development,Professional Fees,4510,providing music/ artists and PA system for for A Taste of Leyland,11/10/2023,0000492620,600.00,Revenue,Philip Robert Ireland,0
South Ribble Borough Council,http://statistics.data.gov.uk/id/local-authority/30UE,Capital,Cap Contract Payment,C230,Worden Hall - Furniture Review & Upholstery,18/10/2023,0000492904,"1,550.00",Revenue,Pioneer Contract Furniture Ltd,0
South Ribble Borough Council,http://statistics.data.gov.uk/id/local-authority/30UE,Central Support Services,External Contractors Charges,4570,"Attended site and replaced 2 hoses on roof of , bin wagon both rubbed through , VIN REDACTED, JFC 20724",04/10/2023,0000492698,539.62,Revenue,Pirtek,0
South Ribble Borough Council,http://statistics.data.gov.uk/id/local-authority/30UE,Economic Development,Economic Regeneration,485A,"Town Centre AI, Licence, Licence renewal for the period, 1st June 2023to 31st May 2024, for, Leyland, Lostock Hall, Bamber Bridge",18/10/2023,0000491877,"8,700.00",Revenue,Place Informatics Ltd,0
South Ribble Borough Council,http://statistics.data.gov.uk/id/local-authority/30UE,Central Support Services,Agency Staff,1121,Enforcement consultant NAME REDACTED,25/10/2023,0000493050,"1,959.05",Revenue,Planning Control & PACE Solutions,0
South Ribble Borough Council,http://statistics.data.gov.uk/id/local-authority/30UE,Recreation & Sport,Reactive Repair & Maintenance,2020,External Signage to Height restrictive Barrier at Bamber Bridge Leisure Centre as per NAME REDACTED request,25/10/2023,0000493280,984.66,Revenue,Poppy Signs Ltd,0
South Ribble Borough Council,http://statistics.data.gov.uk/id/local-authority/30UE,Recreation & Sport,Maintenance & Repair,4013,cancelled by credit,04/10/2023,0000491261,"18,072.13",Revenue,Preston Scaffolding NW Ltd.,0
South Ribble Borough Council,http://statistics.data.gov.uk/id/local-authority/30UE,Recreation & Sport,Reactive Repair & Maintenance,2020,"Weekly Scaffold Inspections at Leyland Leisure Centres, June & July as per NAME REDACTED",04/10/2023,0000492176,750.00,Revenue,Preston Scaffolding NW Ltd.,0
South Ribble Borough Council,http://statistics.data.gov.uk/id/local-authority/30UE,Recreation & Sport,Planned Annual Repair & Maintenance,2021,Scaffolding Adaptions to existing Handrails at Leyland Leisure Centre as per NAME REDACTED request and inv number 0276,11/10/2023,0000492220,"1,600.00",Revenue,Preston Scaffolding NW Ltd.,0
South Ribble Borough Council,http://statistics.data.gov.uk/id/local-authority/30UE,Elections,Contract Printing,4127,"Annual Canvass 2023, Printing of Stage 1 canvass communications & envelopes (Invoice A5276)",11/10/2023,0000492809,"10,782.10",Revenue,PRINT IMAGE NETWORK LTD,0
South Ribble Borough Council,http://statistics.data.gov.uk/id/local-authority/30UE,Central Support Services,Agency Staff,1121,NAME REDACTED- HGV Technician 40 hours @ 27.19ph W/C 18.09.23,18/10/2023,0000493054,815.70,Revenue,Proactive Personnel Limited,0
South Ribble Borough Council,http://statistics.data.gov.uk/id/local-authority/30UE,Central Support Services,Agency Staff,1121,NAME REDACTED- HGV Technician 40 hours @ 27.19ph W/C 25.09.23,18/10/2023,0000493171,"1,053.61",Revenue,Proactive Personnel Limited,0
South Ribble Borough Council,http://statistics.data.gov.uk/id/local-authority/30UE,Short Term Creditors,Amount Paid,0030,Prudential - Sep 23 Deductions from Payroll,11/10/2023,0000493021,"1,105.00",Revenue,Prudential,0
South Ribble Borough Council,http://statistics.data.gov.uk/id/local-authority/30UE,Short Term Creditors,Amount Paid,0030,Prudential SS - Sep 23 Deductions from Payroll,11/10/2023,0000493022,"5,916.51",Revenue,Prudential,0
South Ribble Borough Council,http://statistics.data.gov.uk/id/local-authority/30UE,Surplus or Deficit on Trading,Reactive Repair & Maintenance,2020,REMEDIAL WORKS TO ADDRESS REDACTED QUOTE REF LRS Q 6677 REF: STAIR CASE Put in place any appropriate signage or barriers to prevent a,25/10/2023,0000493215,900.00,Revenue,PSR & Sons Joiners & Building Contractors,0
South Ribble Borough Council,http://statistics.data.gov.uk/id/local-authority/30UE,Economic Development,Professional Fees,4510,Worden Park `The Bungalow` Daytime bat survey ref: 8027-23 as per NAME REDACTED,18/10/2023,0000492948,650.00,Revenue,Rachel Hacking Ecology,0
South Ribble Borough Council,http://statistics.data.gov.uk/id/local-authority/30UE,Open Spaces,External Contractors Charges,4570,"1.5Tonne Excavator with buckets and plant trailer, collected by landscape team 18/09/2023",11/10/2023,0000492887,559.00,Revenue,Readyplant Limited,0
South Ribble Borough Council,http://statistics.data.gov.uk/id/local-authority/30UE,Recreation & Sport,Reactive Repair & Maintenance,2020,Civils work required for DNO Substation at Leyland LC as per NAME REDACTED,18/10/2023,0000492712,"4,400.00",Revenue,RED ROSE BUILDING MAINTENANCE,0
South Ribble Borough Council,http://statistics.data.gov.uk/id/local-authority/30UE,Homelessness,Temporary Accommodation,5311,"SRBC owes NAME REDACTED 13,000 in accommodation costs for the four rooms at the Old Steam Mill in Preston., , These are charged at ",04/10/2023,0000492448,"13,000.00",Revenue,REDDY & CO,0
South Ribble Borough Council,http://statistics.data.gov.uk/id/local-authority/30UE,Central Support Services,Photocopier Lease Rental,4036,SRBC print charges account 22519103,11/10/2023,0000492888,"1,006.51",Revenue,RICOH (UK) LTD,0
South Ribble Borough Council,http://statistics.data.gov.uk/id/local-authority/30UE,Central Support Services,Consultancy Fees,4541,"Network investigation and issue resolution including FSLogic , Senior Engineer normal Ricoh consultancy hours, for Remote support",18/10/2023,0000492934,"6,300.00",Revenue,RICOH (UK) LTD,0
South Ribble Borough Council,http://statistics.data.gov.uk/id/local-authority/30UE,Economic Development,Operational Equip & Tools,4010,Road Closures for A Taste of Leyland Event,11/10/2023,0000492842,878.00,Revenue,Road Safety Services LTD,0
South Ribble Borough Council,http://statistics.data.gov.uk/id/local-authority/30UE,Elections,Postage General,4291,2nd May 2023,04/10/2023,0000488753,"5,078.70",Revenue,ROYAL MAIL GROUP PLC,0
South Ribble Borough Council,http://statistics.data.gov.uk/id/local-authority/30UE,Elections,Postage General,4291,response plus service,04/10/2023,0000488991,"3,148.32",Revenue,ROYAL MAIL GROUP PLC,0
South Ribble Borough Council,http://statistics.data.gov.uk/id/local-authority/30UE,Local Tax Collection,Postage General,4291,PO Box diversion service,04/10/2023,0000489213,"3,360.00",Revenue,ROYAL MAIL GROUP PLC,0
South Ribble Borough Council,http://statistics.data.gov.uk/id/local-authority/30UE,Elections,Postage General,4291,,04/10/2023,0000490190,"1,545.88",Revenue,ROYAL MAIL GROUP PLC,0
South Ribble Borough Council,http://statistics.data.gov.uk/id/local-authority/30UE,Short Term Creditors,Amount Paid,0030,REFUND,04/10/2023,0000492558,"23,948.64",Revenue,ROYAL MAIL GROUP PLC,0
South Ribble Borough Council,http://statistics.data.gov.uk/id/local-authority/30UE,Elections,Postal Voting Costs,4422,1st issue postal vote mailing (inv 9067415588 01.05.23),18/10/2023,0000493241,"11,244.05",Revenue,ROYAL MAIL GROUP PLC,0
South Ribble Borough Council,http://statistics.data.gov.uk/id/local-authority/30UE,Central Support Services,External Contractors Charges,4570,"LOLER repairs, VIN REDACTED, JFC 20562",04/10/2023,0000492449,683.34,Revenue,RTS Muni,0
South Ribble Borough Council,http://statistics.data.gov.uk/id/local-authority/30UE,Central Support Services,Materials General,4040,"PTO PUMP, VIN REDACTED, JFC-20739, TH",18/10/2023,0000493052,"1,076.00",Revenue,RTS Muni,0
South Ribble Borough Council,http://statistics.data.gov.uk/id/local-authority/30UE,Central Support Services,External Contractors Charges,4570,Labour only VIN REDACTED JFC 20648,18/10/2023,0000493053,"4,334.00",Revenue,RTS Muni,0
South Ribble Borough Council,http://statistics.data.gov.uk/id/local-authority/30UE,Central Support Services,External Contractors Charges,4570,1 spec repair VIN REDACTED JFC20776,25/10/2023,0000493201,716.50,Revenue,RTS Muni,0
South Ribble Borough Council,http://statistics.data.gov.uk/id/local-authority/30UE,Central Support Services,External Contractors Charges,4570,Spec repair- tail lift supply and fit VIN REDACTED JFC 20410,25/10/2023,0000493205,"3,362.00",Revenue,RTS Muni,0
South Ribble Borough Council,http://statistics.data.gov.uk/id/local-authority/30UE,Open Spaces,External Contractors Charges,4570,1 x Ash with ADB-fell to ground level and remove all logs and wood chip.,11/10/2023,0000492755,600.00,Revenue,RUSS ASPINALL T/A BEARDWOOD TREE SERVICE,0
South Ribble Borough Council,http://statistics.data.gov.uk/id/local-authority/30UE,Culture & Heritage,Professional Fees,4510,Performance of Squirrel Walnutkins by Same Difference Arts - at Worden Hall - 27th August 2023,25/10/2023,0000492650,700.00,Revenue,Same Difference Arts CIC,0
South Ribble Borough Council,http://statistics.data.gov.uk/id/local-authority/30UE,Surplus or Deficit on Trading,Electricity,2303,"1614 0274 732, 18 Jan 23 - 17 Jul 23",18/10/2023,0000492822,646.39,Revenue,SCOTTISH POWER,0
South Ribble Borough Council,http://statistics.data.gov.uk/id/local-authority/30UE,Central Support Services,Legal,4821,Practising Certificates for the 7 Solicitors.,11/10/2023,0000492813,"2,359.00",Revenue,Solicitors Regulation Authority (SRA),0
South Ribble Borough Council,http://statistics.data.gov.uk/id/local-authority/30UE,Short Term Creditors,Amount Paid,0030,Labour Councillors - Sep 23 Deductions from Payroll,11/10/2023,0000493019,"3,514.81",Revenue,SOUTH RIBBLE LABOUR PARTY LOCAL GOVERNM,0
South Ribble Borough Council,http://statistics.data.gov.uk/id/local-authority/30UE,Community Development,Professional Fees,4510,"HAF Summer 2023 : Legend costs, , Total = 1,100",18/10/2023,0000493117,"1,100.00",Revenue,South Ribble Leisure Ltd,0
South Ribble Borough Council,http://statistics.data.gov.uk/id/local-authority/30UE,Community Development,Professional Fees,4510,"HAF Summer 2023 delivery, , Bamber Bridge Leisure Centre: 4,000, Leyland Leisure Centre: 3,200, Penwortham Leisure Centre: 5,6",18/10/2023,0000493118,"22,500.00",Revenue,South Ribble Leisure Ltd,0
South Ribble Borough Council,http://statistics.data.gov.uk/id/local-authority/30UE,Community Development,Professional Fees,4510,"HAF Summer 2023 Inflatable court hire charges at 15 per hour., , 23rd July & 6th August set up 2 courts 3-5pm cost 120, 24th Ju",18/10/2023,0000493119,"2,880.00",Revenue,South Ribble Leisure Ltd,0
South Ribble Borough Council,http://statistics.data.gov.uk/id/local-authority/30UE,Recreation & Sport,Dev ftarget Sports-Coaching,4894,"Withy Grove Sports Hub @ 95/hr Peiod: 12/4/23 - 26/3/24, x44.5hrs Total = 4,227.50",18/10/2023,0000493206,"4,227.50",Revenue,South Ribble Leisure Ltd,0
South Ribble Borough Council,http://statistics.data.gov.uk/id/local-authority/30UE,Central Support Services,External Contractors Charges,4570,Spec repair to VIN REDACTED JFC20665 carried out in November/December 2022,18/10/2023,0000492428,"4,733.32",Revenue,Southfield RCV Services Limited,0
South Ribble Borough Council,http://statistics.data.gov.uk/id/local-authority/30UE,Central Support Services,Departmental Course Fees,1420,"DCPC - Onsite Module Course, DCPC Bridge Strikes & Safe Loading, Saturday 9th September 2023",04/10/2023,0000492460,654.50,Revenue,SPECIALIST TRAINING & CONSULTANCY SERVICES LTD,0
South Ribble Borough Council,http://statistics.data.gov.uk/id/local-authority/30UE,Capital,Cap Contract Payment,C230,Boost Fund Plus funds - Warm Halls for All - to install a new heating system,25/10/2023,0000492652,"15,000.00",Revenue,ST AMBROSE CHURCH HALL,0
South Ribble Borough Council,http://statistics.data.gov.uk/id/local-authority/30UE,Service Management & Support,Diesel Fuel,3132,"17000 Ltrs Diesel @ 130.88ppl into the feeder tank at Unit 81 Bison Place, Moss Side key for cabinet is available from the main o",18/10/2023,0000492915,"20,301.96",Revenue,Standard Fuel Oils LtdMain,0
South Ribble Borough Council,http://statistics.data.gov.uk/id/local-authority/30UE,Service Management & Support,Gas Oil,3134,2000l Gas Oil @ 88.16pp,18/10/2023,0000492915,"1,793.20",Revenue,Standard Fuel Oils LtdMain,0
South Ribble Borough Council,http://statistics.data.gov.uk/id/local-authority/30UE,Service Management & Support,Diesel Fuel,3132,"17000 Ltrs Diesel @ 130.88ppl into the , feeder tank at Unit 81 Bison Place, Moss , Side key for cabinet is available from the , ",18/10/2023,0000493113,"1,793.20",Revenue,Standard Fuel Oils LtdMain,0
South Ribble Borough Council,http://statistics.data.gov.uk/id/local-authority/30UE,Capital,Cap Professional Fees,C210,Leyland Town Deal - MEP Professional Fees - Procurement 5: Conversion of Balfour Court & Refurbishment of Leyland Market (RIBA 4-,11/10/2023,0000490371,"2,117.40",Revenue,STEVEN A HUNT & ASSOCIATES LTD,0
South Ribble Borough Council,http://statistics.data.gov.uk/id/local-authority/30UE,Capital,Cap Professional Fees,C210,Leyland Town Deal - MEP Professional Fees - Procurement 5: Conversion of Balfour Court & Refurbishment of Leyland Market (RIBA 4-,11/10/2023,0000491130,"1,411.60",Revenue,STEVEN A HUNT & ASSOCIATES LTD,0
South Ribble Borough Council,http://statistics.data.gov.uk/id/local-authority/30UE,Central Support Services,Purchase of Bins,4043,"1200 x 6.06 55L Hybrid Boxes = 7272.0, 1440 x 2.31 black lids = 3326.40",04/10/2023,0000492613,"10,598.40",Revenue,STRAIGHT MANUFACTURING LIMITED,0
South Ribble Borough Council,http://statistics.data.gov.uk/id/local-authority/30UE,Open Spaces,GM Refurbishment,4657,Tardy Gate Topographical Survey,11/10/2023,0000492482,625.00,Revenue,SURVEY OPERATIONS LTD,0
South Ribble Borough Council,http://statistics.data.gov.uk/id/local-authority/30UE,Central Support Services,IT Consumables,413A,South Ribble Satellite Site Connectivity.,04/10/2023,0000491813,"1,397.70",Revenue,The Networking People (TNP) Ltd,0
South Ribble Borough Council,http://statistics.data.gov.uk/id/local-authority/30UE,Central Support Services,Network and Security,4247,"1G RO2 circuit: Moss Side Depot, PR26 7QR to South Ribble Borough Council, Civic Centre - Annual Rental 25/08/23 - 24/08/24 (ONEA",04/10/2023,0000492010,"35,724.97",Revenue,The Networking People (TNP) Ltd,0
South Ribble Borough Council,http://statistics.data.gov.uk/id/local-authority/30UE,Capital,Capital Grant,C570,PRIVATE OT ASSESSMENTS FOR DFG CASES FROM `THE OT SERVICE`,11/10/2023,0000492841,"14,570.00",Revenue,THE OT SERVICE LTD,0
South Ribble Borough Council,http://statistics.data.gov.uk/id/local-authority/30UE,Tourism,Electricity,2303,"3006014935, 01 Sep 23 - 30 Sep 23",11/10/2023,0000492986,"1,474.30",Revenue,Total Gas & Power (Elec) 3006014935 - Worden Hall,0
South Ribble Borough Council,http://statistics.data.gov.uk/id/local-authority/30UE,Central Support Services,Electricity,2303,"3006014946, 01 Sep 23 - 30 Sep 23",11/10/2023,0000492987,"3,396.11",Revenue,Total Gas & Power (Elec) 3006014946 - Civic Centre,0
South Ribble Borough Council,http://statistics.data.gov.uk/id/local-authority/30UE,Central Support Services,Electricity,2303,"3006014957, 01 Sep 23 - 30 Sep 23",11/10/2023,0000492976,"2,831.68",Revenue,Total Gas & Power (Elec) 3006014957 - Moss Side De,0
South Ribble Borough Council,http://statistics.data.gov.uk/id/local-authority/30UE,Central Support Services,Electricity,2303,"3006031644, 01 Aug 23 - 31 Aug 23",04/10/2023,0000492766,697.48,Revenue,Total Gas & Power (Elec) 3006031644 - Hurst Grange,0
South Ribble Borough Council,http://statistics.data.gov.uk/id/local-authority/30UE,Central Support Services,Electricity,2303,"3006031644, 01 Sep 23 - 30 Sep 23",25/10/2023,0000493148,621.30,Revenue,Total Gas & Power (Elec) 3006031644 - Hurst Grange,0
South Ribble Borough Council,http://statistics.data.gov.uk/id/local-authority/30UE,Central Support Services,Gas,2304,"3006046241, 31 Aug 23 - 30 Sep 23",25/10/2023,0000493153,715.27,Revenue,Total Gas & Power (Gas) 3006046241 - Civic Centre,0
South Ribble Borough Council,http://statistics.data.gov.uk/id/local-authority/30UE,Housing Advice,Contributions to Other Bodies,4730,"AFFORDABLE WARMTH FUNDING FOR DOOR AND WINDOW REPLACEMENT AT ADDRESS REDACTED , AS PER QUOTE SUPPLED OF 1298.40( INC VAT",25/10/2023,0000491177,"1,082.00",Revenue,TRADE WINDOWS & CONSERVATORIES,0
South Ribble Borough Council,http://statistics.data.gov.uk/id/local-authority/30UE,Housing Advice,Contributions to Other Bodies,4730,AFFORDABLE WARMTH FUNDING FOR DOOR AND WINDOW WORKS AT ADDRESS REDACTED AS PER QUOTE SUPPLED OF 1230.00 INC VAT),11/10/2023,0000492903,"1,025.00",Revenue,TRADE WINDOWS & CONSERVATORIES,0
South Ribble Borough Council,http://statistics.data.gov.uk/id/local-authority/30UE,Economic Development,Professional Fees,4510,Work agreed to support major projects,11/10/2023,0000492825,"15,000.00",Revenue,Trebbi Continuum Limited,0
South Ribble Borough Council,http://statistics.data.gov.uk/id/local-authority/30UE,Central Support Services,Hiring Expenses,3212,Hire of RCV VIN REDACTED 29th August - 29th September 2023 24 days @ 175.00,18/10/2023,0000493077,"3,675.00",Revenue,Trest Limited,0
South Ribble Borough Council,http://statistics.data.gov.uk/id/local-authority/30UE,Central Support Services,External Contractors Charges,4570,Truck tyre Maintenance August 2023,11/10/2023,0000492886,"1,395.56",Revenue,Tructyre Fleet Management Ltd,0
South Ribble Borough Council,http://statistics.data.gov.uk/id/local-authority/30UE,Open Spaces,External Contractors Charges,4570,"Reduction of 1 x oak within St Catherines School, Moss Lane",04/10/2023,0000492587,700.00,Revenue,Trunks Tree Care Ltd,0
South Ribble Borough Council,http://statistics.data.gov.uk/id/local-authority/30UE,Economic Development,Professional Fees,4510,Deposits for MITP 2024 Acts,11/10/2023,0000492477,"1,750.00",Revenue,UK Media Events Ltd,0
South Ribble Borough Council,http://statistics.data.gov.uk/id/local-authority/30UE,Economic Development,Professional Fees,4510,Deposits for MITP 2024 Acts,11/10/2023,0000492525,"2,500.00",Revenue,UK Media Events Ltd,0
South Ribble Borough Council,http://statistics.data.gov.uk/id/local-authority/30UE,Economic Development,Professional Fees,4510,Deposits for MITP 2024 Acts,11/10/2023,0000492526,"2,500.00",Revenue,UK Media Events Ltd,0
South Ribble Borough Council,http://statistics.data.gov.uk/id/local-authority/30UE,Economic Development,Professional Fees,4510,Deposits for MITP 2024 Acts,11/10/2023,0000492527,"1,750.00",Revenue,UK Media Events Ltd,0
South Ribble Borough Council,http://statistics.data.gov.uk/id/local-authority/30UE,Economic Development,Professional Fees,4510,Deposits for MITP 2024 Acts,11/10/2023,0000492528,"2,627.50",Revenue,UK Media Events Ltd,0
South Ribble Borough Council,http://statistics.data.gov.uk/id/local-authority/30UE,Economic Development,Professional Fees,4510,Deposits for MITP 2024 Acts,11/10/2023,0000492529,750.00,Revenue,UK Media Events Ltd,0
South Ribble Borough Council,http://statistics.data.gov.uk/id/local-authority/30UE,Economic Development,Professional Fees,4510,Deposits for MITP 2024 Acts,11/10/2023,0000492651,"1,750.00",Revenue,UK Media Events Ltd,0
South Ribble Borough Council,http://statistics.data.gov.uk/id/local-authority/30UE,Economic Development,Professional Fees,4510,Deposits for MITP 2024 Acts,11/10/2023,0000492872,"2,500.00",Revenue,UK Media Events Ltd,0
South Ribble Borough Council,http://statistics.data.gov.uk/id/local-authority/30UE,Economic Development,Professional Fees,4510,To be credited by CN3391,11/10/2023,0000492890,"5,000.00",Revenue,UK Media Events Ltd,0
South Ribble Borough Council,http://statistics.data.gov.uk/id/local-authority/30UE,Short Term Creditors,Amount Paid,0030,Unison - Sep 23 Deductions from Payroll,11/10/2023,0000493017,"1,758.95",Revenue,Unison,0
South Ribble Borough Council,http://statistics.data.gov.uk/id/local-authority/30UE,Surplus or Deficit on Trading,Consultancy Fees,4541,"RICS Valuation Report - Vernon Carus Sports and Social Club, Factory Lane, Penwortham, Preston - request raised by NAME REDACTED",25/10/2023,0000493165,"2,500.00",Revenue,VALUATION OFFICE AGENCY,0
South Ribble Borough Council,http://statistics.data.gov.uk/id/local-authority/30UE,Open Spaces,Plants Trees & Shrubs,4046,400 Crocus Jeanne D�arc 0.11 each 150 Narcissus Mount Hood 0.10 300 Allium Purple Sensation 0.25 300 Allium spaerocephalon 0.07 2,11/10/2023,0000492783,700.50,Revenue,Vans Dutch Bulbs Company Ltd,0
South Ribble Borough Council,http://statistics.data.gov.uk/id/local-authority/30UE,Central Support Services,Materials General,4040,"6x rose bearings, 1x raise plate, 2 raise plate hinges, 1x gas strut, VIN REDACTED, JFC20685",18/10/2023,0000492922,639.00,Revenue,WasteParts UK Ltd,0
South Ribble Borough Council,http://statistics.data.gov.uk/id/local-authority/30UE,Central Support Services,Water Charges(Metered),2511,"408 041 2513, 15 Aug 23 - 13 Sep 23",04/10/2023,0000492627,"2,751.25",Revenue,WaterPlus 4080412513 Unit 81 Bison Place,0
South Ribble Borough Council,http://statistics.data.gov.uk/id/local-authority/30UE,Central Support Services,Water Charges(Metered),2511,"408 387 2980, 25 Aug 23 - 24 Sep 23",04/10/2023,0000492630,535.35,Revenue,"WaterPlus 4083872980 Council Offices, West Paddock",0
South Ribble Borough Council,http://statistics.data.gov.uk/id/local-authority/30UE,Community Development,Room Hire,2402,"Hire of Northbrook Barn for Summer 2023 HAF camps 1st, 4th, 8th, 11th, 15th, 18th, 22nd, 25th, 29th August & 1st September @ 50 ",11/10/2023,0000492829,500.00,Revenue,Wellfield Church,0
South Ribble Borough Council,http://statistics.data.gov.uk/id/local-authority/30UE,Open Spaces,External Contractors Charges,4570,"Chorley Road ADB Works Walton le Dale, Removal of diseased ash trees and reduction works along boundary with highway as per site ",04/10/2023,0000492515,"7,345.00",Revenue,WESTFIELD TREE SERVICES LTD,0
South Ribble Borough Council,http://statistics.data.gov.uk/id/local-authority/30UE,Capital,Cap Contract Payment,C230,"Consultancy Services - Architect & PD RIBA 1-3, Balfour Court development",11/10/2023,0000490650,"49,878.20",Revenue,Wilson Mason LLP,0
South Ribble Borough Council,http://statistics.data.gov.uk/id/local-authority/30UE,Capital,Cap Professional Fees,C210,Leyland Town Deal - Architect & PD (Build) Professional Fees - Procurement 5: Conversion of Balfour Court & Refurbishment of Leyl,18/10/2023,0000491056,"5,875.30",Revenue,Wilson Mason LLP,0
South Ribble Borough Council,http://statistics.data.gov.uk/id/local-authority/30UE,Capital,Cap Professional Fees,C210,Leyland Town Deal - Architect & PD (Build) Professional Fees - Procurement 5: Conversion of Balfour Court & Refurbishment of Leyl,18/10/2023,0000491058,"1,958.43",Revenue,Wilson Mason LLP,0
South Ribble Borough Council,http://statistics.data.gov.uk/id/local-authority/30UE,Capital,Cap Professional Fees,C210,Leyland Town Deal - Architect & PD (Build) Professional Fees - Procurement 4: Construction of BASE2 & Commercial Building A (RIBA,18/10/2023,0000491059,609.91,Revenue,Wilson Mason LLP,0
South Ribble Borough Council,http://statistics.data.gov.uk/id/local-authority/30UE,Capital,Cap Professional Fees,C210,Leyland Town Deal - Architect & PD (Build) Professional Fees - Procurement 4: Construction of BASE2 & Commercial Building A (RIBA,18/10/2023,0000491060,"3,843.10",Revenue,Wilson Mason LLP,0
South Ribble Borough Council,http://statistics.data.gov.uk/id/local-authority/30UE,Capital,Cap Professional Fees,C210,Leyland Town Deal - Architect & PD (Build) Professional Fees - Procurement 4: Construction of BASE2 & Commercial Building A (RIBA,18/10/2023,0000491061,609.91,Revenue,Wilson Mason LLP,0
South Ribble Borough Council,http://statistics.data.gov.uk/id/local-authority/30UE,Capital,Cap Professional Fees,C210,Leyland Town Deal - Architect & PD (Build) Professional Fees - Procurement 4: Construction of BASE2 & Commercial Building A (RIBA,18/10/2023,0000491062,"3,843.10",Revenue,Wilson Mason LLP,0
South Ribble Borough Council,http://statistics.data.gov.uk/id/local-authority/30UE,Capital,Cap Professional Fees,C210,Leyland Town Deal - Architect & PD (Build) Professional Fees - Procurement 5: Conversion of Balfour Court & Refurbishment of Leyl,18/10/2023,0000491063,625.00,Revenue,Wilson Mason LLP,0
South Ribble Borough Council,http://statistics.data.gov.uk/id/local-authority/30UE,Open Spaces,GM Refurbishment,4657,"8no. di-bond wildlife signs, 6no. correx site safety signs and 6no. number plates",11/10/2023,0000492709,576.00,Revenue,WOODSTOCK SIGNS,0
South Ribble Borough Council,http://statistics.data.gov.uk/id/local-authority/30UE,Capital,Cap Professional Fees,C210,Leyland Town Deal - Structural Engineer Professional Fees - Procurement 4: Construction of BASE2 & Commercial Building A (RIBA 4),18/10/2023,0000492730,"2,000.00",Revenue,Woolgar Hunter Limited,0
South Ribble Borough Council,http://statistics.data.gov.uk/id/local-authority/30UE,Capital,Cap Professional Fees,C210,Leyland Town Deal - Structural Engineer Professional Fees - Procurement 5: Conversion of Balfour Court & Refurbishment of Leyland,18/10/2023,0000492731,"2,000.00",Revenue,Woolgar Hunter Limited,0
South Ribble Borough Council,http://statistics.data.gov.uk/id/local-authority/30UE,Capital,Cap Professional Fees,C210,Leyland Town Deal - Structural Engineer Professional Fees - Procurement 3: Public Realm (RIBA 4),18/10/2023,0000492732,"10,000.00",Revenue,Woolgar Hunter Limited,0
South Ribble Borough Council,http://statistics.data.gov.uk/id/local-authority/30UE,Capital,Cap Professional Fees,C210,Leyland Town Deal - Structural Engineer Professional Fees - Procurement 1: Demolition of NFM Iddons Factory and Asbestos Removal ,18/10/2023,0000492734,"3,000.00",Revenue,Woolgar Hunter Limited,0
